Workbook

Sheet Contents
C2: Ch. 17 - Queueing Theory
B5: Contents:
C6: Template for M/M/s Model
C7: Template for M/M/s Finite Queue Model
C8: Template for M/M/s Finite Calling Population Model
C9: Template for M/G/1 Model
C10: Template for M/D/1 Model
C11: Template for M/E/1 Model
C12: Template for M/M/s Nonpreemptive Priorities Model
C13: Template for M/M/s Preemptive Priorities Model
B16: Click on the tab below to select the worksheet of your choice.

Sheet M|M|s
A1: Template for M/M/s Queueing Model
C3: Data | F3: Results
B4: l = | C4: 9 | D4: (mean arrival rate) | F4: L = | G4: =IF(G10<1,G5+C4/C5,NA()) -> 
B5: m = | C5: 5.3 | D5: (mean service rate) | F5: Lq = | G5: =IF(G10<1,C4*C5*((C4/C5)^C6)/(FACT(C6-1)*(C6*C5-C4)^2/G12),NA()) -> 
B6: s = | C6: 3 | D6: (# servers) | J6: P0 = | K6: 0.1660989236 | L6: P3 = | M6: 0.09958336179 | N6: P1 = | O6: 0.1102941176 | P6: =K6*O6*M10 -> 0.000817532919
F7: W = | G7: =IF(G10<1,G4/C4,NA()) ->  | J7: P1 = | K7: 0.2820547759 | L7: P4 = | M7: 0.08147729601 | N7: P1 = | O7: 0.1102941176 | P7: =K7*M9*O7 -> 0.001696766436
B8: Pr(W > t) = | C8: =IF((C6-1-C4/C5)=0,EXP(-C5*C9)*(1+G12*((C4/C5)^C6)/(FACT(C6)*(1-G10))*C5*C9),EXP(-C5*C9)*(1+G12*((C4/C5)^C6)/(FACT(C6)*(1-G10))*(1-EXP(-C5*C9*(C6-1-C4/C5)))/(C6-1-C4/C5))) ->  | F8: Wq = | G8: =IF(G10<1,G5/C4,NA()) ->  | J8: P2 = | K8: 0.2394804701 | L8: P5 = | M8: 0.06666324219 | N8: P1 = | O8: 0.1102941176 | P8: =K8*O8*M8 -> 0.001760795358
B9: when t = | C9: 1 | E9: =IF(G10>=1,"Model invalid because:","") ->  | J9: P3 = | K9: 0.1355549831 | L9: P6 = | M9: 0.0545426527 | N9: P1 = | O9: 0.1102941176 | P9: =K9*O9*M7 -> 0.00121816031
E10: =IF(G10>=1," r >= 1","") ->  | F10: r = | G10: =C4/(C6*C5) -> 0.5660377358 | J10: P4 = | K10: 0.07672923569 | L10: P7 = | M10: 0.04462580676 | N10: P1 = | O10: 0.1102941176 | P10: =K10*O10*M6 -> 0.000842752416
B11: Prob(Wq > t) = | C11: =(1-SUM(OFFSET(G12,0,0,C6,1)))*EXP(-C6*C5*(1-G10)*C12) ->  | P11: =SUM(P6:P10) -> 0.006336007438
A12: 0 | B12: when t = | C12: 1 | F12: P0 = | G12: =IF(G10<1,1/(sumxpf(C4/C5,0,C6-1)+((C4/C5)^C6)/(FACT(C6)*(1-C4/(C6*C5)))),NA()) -> 
A13: 1 | F13: P1 = | G13: =IF(G10<1,IF($C$6=1,(1-$G$10)*$G$10^ROW(G1),IF($C$6>=ROW(G1),(($C$4/$C$5)^ROW(G1))*$G$12/FACT(ROW(G1)),(($C$4/$C$5)^ROW(G1))*$G$12/(FACT($C$6)*($C$6^(ROW(G1)-$C$6))))),NA()) ->  | J13: 0.765832106 | K13: 0.5 | L13: 0.09090909091 | M13: =J13+K13+L13 -> 1.356741197 | N13: =M13*60 -> 81.40447182
A14: 2 | F14: P2 = | G14: =IF(G11<1,IF($C$6=1,(1-$G$10)*$G$10^ROW(G2),IF($C$6>=ROW(G2),(($C$4/$C$5)^ROW(G2))*$G$12/FACT(ROW(G2)),(($C$4/$C$5)^ROW(G2))*$G$12/(FACT($C$6)*($C$6^(ROW(G2)-$C$6))))),NA()) -> 
A15: 3 | F15: P3 = | G15: =IF(G12<1,IF($C$6=1,(1-$G$10)*$G$10^ROW(G3),IF($C$6>=ROW(G3),(($C$4/$C$5)^ROW(G3))*$G$12/FACT(ROW(G3)),(($C$4/$C$5)^ROW(G3))*$G$12/(FACT($C$6)*($C$6^(ROW(G3)-$C$6))))),NA()) -> 
A16: 4 | F16: P4 =
A17: 5 | F17: P5 =
A18: 6 | F18: P6 =
A19: 7 | F19: P7 =
A20: 8 | F20: P8 =
A21: 9 | F21: P9 =
A22: 10 | F22: P10 =
A23: 11 | F23: P11 =
A24: 12 | F24: P12 =
A25: 13 | F25: P13 =
A26: 14 | F26: P14 =
A27: 15 | F27: P15 =
A28: 16 | F28: P16 =
A29: 17 | F29: P17 = | G29: =IF(G26<1,IF($C$6=1,(1-$G$10)*$G$10^ROW(G17),IF($C$6>=ROW(G17),(($C$4/$C$5)^ROW(G17))*$G$12/FACT(ROW(G17)),(($C$4/$C$5)^ROW(G17))*$G$12/(FACT($C$6)*($C$6^(ROW(G17)-$C$6))))),NA()) -> 
A30: 18 | F30: P18 = | G30: =IF(G27<1,IF($C$6=1,(1-$G$10)*$G$10^ROW(G18),IF($C$6>=ROW(G18),(($C$4/$C$5)^ROW(G18))*$G$12/FACT(ROW(G18)),(($C$4/$C$5)^ROW(G18))*$G$12/(FACT($C$6)*($C$6^(ROW(G18)-$C$6))))),NA()) -> 
A31: 19 | F31: P19 = | G31: =IF(G28<1,IF($C$6=1,(1-$G$10)*$G$10^ROW(G19),IF($C$6>=ROW(G19),(($C$4/$C$5)^ROW(G19))*$G$12/FACT(ROW(G19)),(($C$4/$C$5)^ROW(G19))*$G$12/(FACT($C$6)*($C$6^(ROW(G19)-$C$6))))),NA()) -> 
A32: 20 | F32: P20 =
A33: 21 | F33: P21 =
A34: 22 | F34: P22 =
A35: 23 | F35: P23 =
A36: 24 | F36: P24 =
A37: 25 | F37: P25 =

Sheet Finite Queue
A1: Template for M/M/s Finite Queue Model
C3: Data | F3: Results
B4: l = | C4: 3 | D4: (mean arrival rate) | F4: L = | G4: =sumnarray(G12:G37,0,MIN(C6,C7)-1,0)+G5+MIN(C6,C7)*(1-sumarray(G12:G37,0,MIN(C6,C7)-1)) -> 2
B5: m = | C5: 3 | D5: (mean service rate) | F5: Lq = | G5: =IF(G10=1,sumnarray(G12:G37,C6,C7,C6),G12*((C4/C5)^MIN(C6,C7))*G10/(FACT(MIN(C6,C7))*(1-G10)^2)*(1-(G10^(C7-MIN(C6,C7)))-(C7-MIN(C6,C7))*(G10^(C7-MIN(C6,C7)))*(1-G10))) -> 1.2
B6: s = | C6: 1 | D6: (# servers)
B7: K = | C7: 4 | D7: (max customers) | F7: W = | G7: =G4/(C4*(1-(((C4/C5)^C7)/(FACT(MIN(C6,C7))*MIN(C6,C7)^(C7-MIN(C6,C7)))*G12))) -> 0.8333333333
F8: Wq = | G8: =G5/(C4*(1-(((C4/C5)^C7)/(FACT(MIN(C6,C7))*MIN(C6,C7)^(C7-MIN(C6,C7)))*G12))) -> 0.5
F10: r = | G10: =C4/(MIN(C6,C7)*C5) -> 1
F12: P0 = | G12: =IF(C7>=C6+1,1/(1+(sumxpf(C4/C5,1,C6)+((C4/C5)^C6)/FACT(C6)*sumxp(C4/(C6*C5),C6+1,C7))),1/(1+sumxpf(C4/C5,1,MIN(C6,C7)))) -> 0.2
F13: P1 = | G13: =IF(ROW(G1)>$C$7,0,IF(ROW(G1)>=MIN($C$6,$C$7),(($C$4/$C$5)^ROW(G1))/(FACT(MIN($C$6,$C$7))*(MIN($C$6,$C$7)^(ROW(G1)-MIN($C$6,$C$7))))*$G$12,(($C$4/$C$5)^ROW(G1))/FACT(ROW(G1))*$G$12)) -> 0.2
F14: P2 = | G14: =IF(ROW(G2)>$C$7,0,IF(ROW(G2)>=MIN($C$6,$C$7),(($C$4/$C$5)^ROW(G2))/(FACT(MIN($C$6,$C$7))*(MIN($C$6,$C$7)^(ROW(G2)-MIN($C$6,$C$7))))*$G$12,(($C$4/$C$5)^ROW(G2))/FACT(ROW(G2))*$G$12)) -> 0.2
F15: P3 = | G15: 0.2
F16: P4 = | G16: 0.2
F17: P5 = | G17: 0
F18: P6 = | G18: 0
F19: P7 = | G19: 0
F20: P8 = | G20: 0
F21: P9 = | G21: 0
F22: P10 = | G22: 0
F23: P11 = | G23: 0
F24: P12 = | G24: 0
F25: P13 = | G25: 0
F26: P14 = | G26: 0
F27: P15 = | G27: 0
F28: P16 = | G28: 0
F29: P17 = | G29: 0
F30: P18 = | G30: 0
F31: P19 = | G31: 0
F32: P20 = | G32: 0
F33: P21 = | G33: 0
F34: P22 = | G34: 0
F35: P23 = | G35: 0
F36: P24 = | G36: 0
F37: P25 = | G37: 0

Sheet Finite Calling Population
A1: Template for M/M/s Finite Calling Population Model
C3: Data | F3: Results
B4: l = | C4: 0.2 | D4: (exponential parameter) | F4: L = | G4: =sumnarray(G13:G38,0,MIN(C6,C7)-1,0)+G5+MIN(C6,C7)*(1-sumarray(G13:G38,0,MIN(C6,C7)-1)) -> 1.424339107
B5: m = | C5: 1 | D5: (mean service rate) | F5: Lq = | G5: =sumnarray(G13:G38,MIN(C6,C7),C7,MIN(C6,C7)) -> 0.709206928
B6: s = | C6: 1 | D6: (# servers)
B7: N = | C7: 5 | D7: (size of population) | F7: W = | G7: =G4/(C4*(C7-G4)) -> 1.991714468
F8: Wq = | G8: =G5/(C4*(C7-G4)) -> 0.9917144678
F10: r = | G10: =C4*C7/(C6*C5) -> 1
F11: l-bar = | G11: =C4*(C7-G4) -> 0.7151321787
A13: 0 | F13: P0 = | G13: =1/(finitepop(C4/C5,MIN(C6,C7),C7)) -> 0.2848678213
A14: 1 | F14: P1 = | G14: =IF(ROW(G1)<=MIN($C$6,$C$7),FACT($C$7)*(($C$4/$C$5)^ROW(G1))*$G$13/(FACT($C$7-ROW(G1))*FACT(ROW(G1))),IF(ROW(G1)<=$C$7,FACT($C$7)*(($C$4/$C$5)^ROW(G1))*$G$13/(FACT($C$7-ROW(G1))*FACT($C$6)*($C$6^(ROW(G1)-$C$6))),0)) -> 0.2848678213
A15: 2 | F15: P2 = | G15: =IF(ROW(G2)<=MIN($C$6,$C$7),FACT($C$7)*(($C$4/$C$5)^ROW(G2))*$G$13/(FACT($C$7-ROW(G2))*FACT(ROW(G2))),IF(ROW(G2)<=$C$7,FACT($C$7)*(($C$4/$C$5)^ROW(G2))*$G$13/(FACT($C$7-ROW(G2))*FACT($C$6)*($C$6^(ROW(G2)-$C$6))),0)) -> 0.2278942571
A16: 3 | F16: P3 = | G16: 0.1367365542
A17: 4 | F17: P4 = | G17: 0.0546946217
A18: 5 | F18: P5 = | G18: 0.01093892434
A19: 6 | F19: P6 = | G19: 0
A20: 7 | F20: P7 = | G20: 0
A21: 8 | F21: P8 = | G21: 0
A22: 9 | F22: P9 = | G22: 0
A23: 10 | F23: P10 = | G23: 0
A24: 11 | F24: P11 = | G24: 0
A25: 12 | F25: P12 = | G25: 0
A26: 13 | F26: P13 = | G26: 0
A27: 14 | F27: P14 = | G27: 0
A28: 15 | F28: P15 = | G28: 0
A29: 16 | F29: P16 = | G29: 0
A30: 17 | F30: P17 = | G30: 0
A31: 18 | F31: P18 = | G31: 0
A32: 19 | F32: P19 = | G32: 0
A33: 20 | F33: P20 = | G33: 0
A34: 21 | F34: P21 = | G34: 0
A35: 22 | F35: P22 = | G35: 0
A36: 23 | F36: P23 = | G36: 0
A37: 24 | F37: P24 = | G37: 0
A38: 25 | F38: P25 = | G38: 0

Sheet M|G|1
A1: Template for M/G/1 Queueing Model
C3: Data | F3: Results
B4: l = | C4: 9 | D4: (mean arrival rate) | F4: L = | G4: =IF(G10<1,G5+C4*C5,NA()) -> 9
B5: 1/m = | C5: 0.1 | D5: (expected service time) | F5: Lq = | G5: =IF(G10<1,((C4^2)*(C6^2)+(G10^2))/(2*(1-G10)),NA()) -> 8.1
B6: s = | C6: 0.1 | D6: (standard deviation)
B7: s = | C7: 1 | D7: (# servers) | F7: W = | G7: =IF(G10<1,G4/C4,NA()) -> 1
F8: Wq = | G8: =IF(G10<1,G5/C4,NA()) -> 0.9
D10: =IF(G10>=1,"Model invalid because:","") ->  | F10: r = | G10: =C4*C5 -> 0.9
D11: =IF(G10>=1," r >= 1","") -> 
F12: P0 = | G12: =IF(G10<1,1-G10,NA()) -> 0.1

Sheet M|D|1
A1: Template for M/D/1 Queueing Model
C3: Data | F3: Results
B4: l = | C4: 9 | D4: (mean arrival rate) | F4: L = | G4: =IF(G10<1,G5+C4/C5,NA()) -> 4.95
B5: m = | C5: 10 | D5: (mean service rate) | F5: Lq = | G5: =IF(G10<1,(G10^2)/(2*(1-G10)),NA()) -> 4.05
B6: s = | C6: 1 | D6: (# servers)
F7: W = | G7: =IF(G10<1,G4/C4,NA()) -> 0.55
F8: Wq = | G8: =IF(G10<1,G5/C4,NA()) -> 0.45
D10: =IF(G10>=1,"Model invalid because:","") ->  | F10: r = | G10: =C4/C5 -> 0.9
D11: =IF(G10>=1," r >= 1","") -> 
F12: P0 = | G12: =IF(G10<1,1-G10,NA()) -> 0.1

Sheet M|E|1
A1: Template for M/E/1 Queueing Model
C3: Data | F3: Results
B4: l = | C4: 9 | D4: (mean arrival rate) | F4: L = | G4: =IF(G10<1,G5+C4/C5,NA()) -> 6.975
B5: m = | C5: 10 | D5: (mean service rate) | F5: Lq = | G5: =IF(G10<1,(C6+1)/(2*C6)*(G10^2)/(1-G10),NA()) -> 6.075
B6: k = | C6: 2 | D6: (shape parameter)
B7: s = | C7: 1 | D7: (# servers) | F7: W = | G7: =IF(G10<1,G4/C4,NA()) -> 0.775
F8: Wq = | G8: =IF(G10<1,G5/C4,NA()) -> 0.675
D10: =IF(G10>=1,"Model invalid because:","") ->  | F10: r = | G10: =C4/C5 -> 0.9
D11: =IF(G10>=1," r >= 1","") -> 
F12: P0 = | G12: =IF(G10<1,1-G10,NA()) -> 0.1

Sheet Nonpreemptive Priorities
A1: Template for M/M/s Nonpreemptive Priorities Queueing Model
B4: N = | C4: 4 | D4: (# of priority classes)
B5: m = | C5: 11 | D5: (mean service rate)
B6: s = | C6: 1 | D6: (# servers)
C9: li | D9: L | E9: Lq | F9: W | G9: Wq
B10: =IF($C$4>=1,"Priority Class 1","") -> Priority Class 1 | C10: =0.05*10 -> 0.5 | D10: =IF(C4>=1,F10*C10,"") -> 0.08874458874 | E10: =IF(C4>=1,G10*C10,"") -> 0.04329004329 | F10: =IF(C4>=1,1/((FACT(C6)*((C5*C6)-C15)/((C15/C5)^C6)*sumxpf(C15/C5,0,C6-1)+C5*C6)*(1-C10/(C5*C6)))+1/C5,"") -> 0.1774891775 | G10: =IF(C4>=1,F10-1/C5,"") -> 0.08658008658
B11: =IF($C$4>=2,"Priority Class 2","") -> Priority Class 2 | C11: =0.2*10 -> 2 | D11: =IF(C4>=2,F11*C11,"") -> 0.4059078177 | E11: =IF(C4>=2,G11*C11,"") -> 0.2240896359 | F11: =IF(C4>=2,1/((FACT(C6)*((C5*C6)-C15)/((C15/C5)^C6)*sumxpf(C15/C5,0,C6-1)+C5*C6)*(1-C10/(C5*C6))*(1-SUM(C10:C11)/(C5*C6)))+1/C5,"") -> 0.2029539088 | G11: =IF(C4>=2,F11-1/C5,"") -> 0.1120448179
B12: =IF($C$4>=3,"Priority Class 3","") -> Priority Class 3 | C12: =0.3*10 -> 3 | D12: =IF(C4>=3,F12*C12,"") -> 0.9144385027 | E12: =IF(C4>=3,G12*C12,"") -> 0.6417112299 | F12: =IF(C4>=3,1/((FACT(C6)*((C5*C6)-C15)/((C15/C5)^C6)*sumxpf(C15/C5,0,C6-1)+C5*C6)*(1-SUM(C10:C11)/(C5*C6))*(1-SUM(C10:C12)/(C5*C6)))+1/C5,"") -> 0.3048128342 | G12: =IF(C4>=3,F12-1/C5,"") -> 0.2139037433
B13: =IF($C$4>=4,"Priority Class 4","") -> Priority Class 4 | C13: =0.45*10 -> 4.5 | D13: =IF(C4>=4,F13*C13,"") -> 8.590909091 | E13: =IF(C4>=4,G13*C13,"") -> 8.181818182 | F13: =IF(C4>=4,1/((FACT(C6)*((C5*C6)-C15)/((C15/C5)^C6)*sumxpf(C15/C5,0,C6-1)+C5*C6)*(1-SUM(C10:C12)/(C5*C6))*(1-SUM(C10:C13)/(C5*C6)))+1/C5,"") -> 1.909090909 | G13: =IF(C4>=4,F13-1/C5,"") -> 1.818181818
B14: =IF($C$4>=5,"Priority Class 5","") ->  | D14: =IF(C4>=5,F14*C14,"") ->  | E14: =IF(C4>=5,G14*C14,"") ->  | F14: =IF(C4>=5,1/((FACT(C6)*((C5*C6)-C15)/((C15/C5)^C6)*sumxpf(C15/C5,0,C6-1)+C5*C6)*(1-SUM(C10:C13)/(C5*C6))*(1-SUM(C10:C14)/(C5*C6)))+1/C5,"") ->  | G14: =IF(C4>=5,F14-1/C5,"") -> 
B15: l = | C15: =C16*C5*C6 -> 10
B16: r = | C16: =IF(C4=1,C10/(C6*C5),IF(C4=2,SUM(C10:C11)/(C5*C6),IF(C4=3,SUM(C10:C12)/(C6*C5),IF(C4=4,SUM(C10:C13)/(C5*C6),IF(C4=5,SUM(C10:C14)/(C5*C6)))))) -> 0.9090909091 | E16: =IF(C16>=1,"Model invalid because:","") -> 
E17: =IF(C16>=1," r >= 1","") ->  | H17: =SUM(D10:D13) -> 10

Sheet Preemptive Priorities
A1: Template for M/M/s Preemptive Priorities Queueing Model
B4: N = | C4: 3 | D4: (# of priority classes)
B5: m = | C5: 8 | D5: (mean service rate)
B6: s = | C6: 1 | D6: (# servers)
C9: li | D9: L | E9: Lq | F9: W | G9: Wq
B10: =IF($C$4>=1,"Priority Class 1","") -> Priority Class 1 | C10: 1 | D10: =IF(C4>=1,F10*C10,"") -> 0.1428571429 | E10: =IF(C4>=1,G10*C10,"") -> 0.01785714286 | F10: =IF(C4>=1,1/C5/(1-C10/C5),"") -> 0.1428571429 | G10: =IF(C4>=1,F10-1/C5,"") -> 0.01785714286 | H10: =(1-C10/(C5*C6)) -> 0.875
B11: =IF($C$4>=2,"Priority Class 2","") -> Priority Class 2 | C11: 1 | D11: =IF(C4>=2,F11*C11,"") -> 0.1904761905 | E11: =IF(C4>=2,G11*C11,"") -> 0.06547619048 | F11: =IF(C4>=2,1/C5/((1-C10/C5)*(1-SUM(C10:C11)/C5)),"") -> 0.1904761905 | G11: =IF(C4>=2,F11-1/C5,"") -> 0.06547619048 | H11: =(1-SUM(C10:C11)/(C5*C6)) -> 0.75
B12: =IF($C$4>=3,"Priority Class 3","") -> Priority Class 3 | C12: 1 | D12: =IF(C4>=3,F12*C12,"") -> 0.2666666667 | E12: =IF(C4>=3,G12*C12,"") -> 0.1416666667 | F12: =IF(C4>=3,1/C5/((1-SUM(C10:C11)/C5)*(1-SUM(C10:C12)/C5)),"") -> 0.2666666667 | G12: =IF(C4>=3,F12-1/C5,"") -> 0.1416666667 | H12: =(1-SUM(C10:C12)/(C5*C6)) -> 0.625
B13: =IF($C$4>=4,"Priority Class 4","") ->  | D13: =IF(C4>=4,F13*C13,"") ->  | E13: =IF(C4>=4,G13*C13,"") ->  | F13: =IF(C4>=4,1/C5/((1-SUM(C10:C12)/C5)*(1-SUM(C10:C13)/C5)),"") ->  | G13: =IF(C4>=4,F13-1/C5,"") ->  | H13: =(1-SUM(C10:C13)/(C5*C6)) -> 0.625
B14: =IF($C$4>=5,"Priority Class 5","") ->  | D14: =IF(C4>=5,F14*C14,"") ->  | E14: =IF(C4>=5,G14*C14,"") ->  | F14: =IF(C4>=5,1/C5/((1-SUM(C10:C13)/C5)*(1-SUM(C10:C14)/C5)),"") ->  | G14: =IF(C4>=5,F14-1/C5,"") ->  | H14: =(1-SUM(C10:C14)/(C5*C6)) -> 0.625
B15: l = | C15: =C16*C5 -> 3
B16: r = | C16: =IF(C4=1,C10/C5,IF(C4=2,SUM(C10:C11)/C5,IF(C4=3,SUM(C10:C12)/C5,IF(C4=4,SUM(C10:C13)/C5,IF(C4=5,SUM(C10:C14)/C5))))) -> 0.375 | E16: =IF(C16>=1,"Model invalid because:","") -> 
E17: =IF(C16>=1," r >= 1","") -> 

Sheet Sheet1
H3: p0 | I3: =1/(1+SUM(F5:F52)) -> 0.2996965743
F4: cn | G4: n | I4: pn | K4: npn
E5: p1 | F5: =((9/11)^G5)/((FACT(G5))^0.2) -> 0.8181818182 | G5: 1 | I5: =F5*$I$3 -> 0.2452062881 | K5: =G5*I5 -> 0.2452062881
E6: p2 | F6: =((9/11)^G6)/((FACT(G6))^0.2) -> 0.5827652531 | G6: 2 | I6: =F6*$I$3 -> 0.17465275 | K6: =G6*I6 -> 0.3493055
E7: p3 | F7: 0.3827535459 | G7: 3 | I7: 0.1147099265 | K7: 0.3441297796
E8: p4 | F8: 0.2373324097 | G8: 4 | I8: 0.07112771017 | K8: 0.2845108407
E9: p5 | F9: 0.1407384852 | G9: 5 | I9: 0.04217884188 | K9: 0.2108942094
E10: p6 | F10: 0.08046971189 | G10: 6 | I10: 0.02411649699 | K10: 0.144698982
E11: p7 | F11: 0.0446131268 | G11: 7 | I11: 0.01337040127 | K11: 0.09359280891
E12: p8 | F12: 0.02408210744 | G12: 8 | I12: 0.007217325102 | K12: 0.05773860081
E13: p9 | F13: 0.01269684483 | G13: 9 | I13: 0.0038052009 | K13: 0.0342468081
E14: p10 | F14: 0.006554591587 | G14: 10 | I14: 0.001964388645 | K14: 0.01964388645
E15: p11 | F15: 0.003319838243 | G15: 11 | I15: 0.0009949441488 | K15: 0.01094438564
E16: p12 | F16: 0.001652458261 | G16: 12 | I16: 0.0004952360801 | K16: 0.005942832961
E17: p13 | F17: 0.0008094530287 | G17: 13 | I17: 0.0002425902998 | K17: 0.003153673897
E18: p14 | F18: 0.0003906752237 | G18: 14 | I18: 0.0001170840262 | K18: 0.001639176367
E19: p15 | F19: 0.0001859719488 | G19: 15 | I19: 5.573515597e-05 | K19: 0.0008360273396
E20: p16 | F20: 8.739232021e-05 | G20: 16 | I20: 2.619117899e-05 | K20: 0.0004190588639
E21: p17 | F21: 4.057264395e-05 | G21: 17 | I21: 1.21594824e-05 | K21: 0.0002067112009
E22: p18 | F22: 1.862209908e-05 | G22: 18 | I22: 5.580979301e-06 | K22: 0.0001004576274
E23: p19 | F23: 8.455274998e-06 | G23: 19 | I23: 2.534016952e-06 | K23: 4.814632209e-05
E24: p20 | F24: 3.799894703e-06 | G24: 20 | I24: 1.138815425e-06 | K24: 2.277630851e-05
E25: p21 | F25: 1.691132078e-06 | G25: 21 | I25: 5.068264907e-07 | K25: 1.06433563e-05
E26: p22 | F26: 7.45663381e-07 | G26: 22 | I26: 2.234727609e-07 | K26: 4.91640074e-06
E27: p23 | F27: 3.258720201e-07 | G27: 23 | I27: =F27*$I$3 -> 9.766272809e-08 | K27: 2.246242746e-06
E28: p24 | F28: 1.41206487e-07 | G28: 24 | I28: 4.231910044e-08 | K28: 1.015658411e-06
E29: p25 | F29: 6.06899069e-08 | G29: 25 | I29: 1.818855719e-08 | K29: 4.547139299e-07
E30: p26 | F30: 2.588043823e-08 | G30: 26 | I30: 7.756278681e-09 | K30: 2.016632457e-07
E31: p27 | F31: 1.095339369e-08 | G31: 27 | I31: 3.282694566e-09 | K31: 8.863275327e-08
E32: p28 | F32: 4.602215125e-09 | G32: 28 | I32: 1.379268107e-09 | K32: 3.861950701e-08
E33: p29 | F33: 1.92015877e-09 | G33: 29 | I33: 5.754650054e-10 | K33: 1.668848516e-08
E34: p30 | F34: 7.957244697e-10 | G34: 30 | I34: 2.384758977e-10 | K34: 7.154276931e-09
E35: p31 | F35: 3.275972134e-10 | G35: 31 | I35: 9.817976263e-11 | K35: 3.043572642e-09
E36: p32 | F36: 1.340170419e-10 | G36: 32 | I36: 4.016444835e-11 | K36: 1.285262347e-09
E37: p33 | F37: 5.448877745e-11 | G37: 33 | I37: 1.633009994e-11 | K37: 5.388932981e-10
E38: p34 | F38: 2.20222204e-11 | G38: 34 | I38: 6.599984013e-12 | K38: 2.243994564e-10
E39: p35 | F39: 8.849063675e-12 | G39: 35 | I39: 2.65203407e-12 | K39: 9.282119244e-11
E40: p36 | F40: 3.535791474e-12 | G40: 36 | I40: 1.059664592e-12 | K40: 3.814792533e-11
E41: p37 | F41: 1.405064056e-12 | G41: 37 | I41: 4.210928842e-13 | K41: 1.558043671e-11
E42: p38 | F42: 5.553787117e-13 | G42: 38 | I42: 1.664450974e-13 | K42: 6.3249137e-12
E43: p39 | F43: 2.183866727e-13 | G43: 39 | I43: 6.54497377e-14 | K43: 2.55253977e-12
E44: p40 | F44: 8.544053471e-14 | G44: 40 | I44: 2.560623556e-14 | K44: 1.024249422e-12
E45: p41 | F45: 3.32626626e-14 | G45: 41 | I45: 9.968706035e-15 | K45: 4.087169474e-13
E46: p42 | F46: 1.288715277e-14 | G46: 42 | I46: 3.862235537e-15 | K46: 1.622138926e-13
E47: p43 | F47: 4.969504748e-15 | G47: 43 | I47: 1.489343549e-15 | K47: 6.404177262e-14
E48: p44 | F48: 1.907534489e-15 | G48: 44 | I48: 5.716815518e-16 | K48: 2.515398828e-14
E49: p45 | F49: 7.289197548e-16 | G49: 45 | I49: 2.184547535e-16 | K49: 9.830463907e-15 | O49: L | P49: =SUM(K5:K52) -> 1.807300585
E50: p46 | F50: 2.773179482e-16 | G50: 46 | I50: 8.311123909e-17 | K50: 3.823116998e-15 | O50: L/lambda | P50: =P49/9 -> 0.2008111761
E51: p47 | F51: 1.050529448e-16 | G51: 47 | I51: 3.14840077e-17 | K51: 1.479748362e-15 | P51: =P50*60 -> 12.04867057
E52: p48 | F52: 3.962869837e-17 | G52: 48 | I52: 1.187658515e-17 | K52: 5.700760871e-16
O53: W-Wo,3 | P53: =0.5*60-P51 -> 17.95132943

Sheet Module1 (hidden)
